Cogmind - Beta 14 @@@ ROGUE MODE // 2024.09.08 @ 13:14:50 Player: ILikeVoltron Result: Self-destructed Performance ------------- Evolutions (2) 1000 Regions Visited (4) 800 Robots Destroyed (70) 350 Value Destroyed (1795) 1795 Prototype IDs (3) 60 Alien Tech Used (0) 0 Bonus (-1159) -1159 TOTAL SCORE: 2846 Bonus ------- High Alert Combat Kills 61 Friendly Fire -1220 Cogmind --------- Core Integrity 355/550 Matter 274/300 Energy 100/100 System Corruption 0% Temperature Cool (0) Movement Core (350) Ox6 Location -8/Materials Parts ------- > --- POWER (1) -------- (None) > --- PROPULSION (4) --- (None) > --- UTILITY (4) ------ Improved Heat Sink Medium Storage Unit Advanced Terrain Scan Processor Transport Network Coupler > --- WEAPON (2) ------- Gauss Rifle Gauss Rifle > --- INVENTORY (10) --- Improved Ion Engine Cooled Ion Engine Medium Matter Pod (100) Improved Terrain Scanner Improved Terrain Scanner Heavy Rocket Launcher Heavy Rocket Launcher Hammer Peak State ------------ > --- POWER ------------ Heavy Ion Engine > --- PROPULSION ------- Aluminum Leg Aluminum Leg Aluminum Leg Armored Wheel > --- UTILITY ---------- Medium Storage Unit Improved Terrain Scanner Transport Network Coupler Microactuators > --- WEAPON ----------- Gauss Rifle Gauss Rifle > --- INVENTORY -------- Improved Ion Engine Cooled Ion Engine Improved Heat Sink Medium Matter Pod Improved Terrain Scanner Terrain Scan Processor Gauss Rifle Heavy Rocket Launcher Heavy Rocket Launcher Hammer [Rating: 27] Favorites ----------- Power Ion Engine Engine Ion Engine Propulsion Aluminum Leg Treads Light Treads Leg Aluminum Leg Wheel Armored Wheel Utility Medium Storage Unit Device Improved Terrain Scanner Storage Medium Storage Unit Processor Transport Network Coupler Protection Light Armor Plating Weapon Assault Rifle Energy Gun Lightning Gun Ballistic Gun Assault Rifle Launcher Rocket Launcher Impact Weapon Hammer Build | -11 -10 -9 -9 -8 ------- Run | Yrd Mat Mat Sto Mat Slots Evolved 4 | . . 2 . 2 Power . | . . . . . Propulsion 2 | . . 1 . 1 Utility 2 | . . 1 . 1 Weapon . | . . . . . Parts Attached 55 | 2 4 11 21 17 Power 4 | . . 1 3 . Engine 4 | . . 1 3 . Core . | . . . . . Reactor . | . . . . . Propulsion 15 | . 2 4 3 6 Treads 2 | . . . 2 . Leg 12 | . 2 4 1 5 Wheel 1 | . . . . 1 Hover . | . . . . . Flight . | . . . . . Utility 13 | 1 . 2 5 5 Device 6 | 1 . 1 1 3 Storage 1 | . . . 1 . Processor 3 | . . . 1 2 Hackware . | . . . . . Protection 3 | . . 1 2 . Artifact . | . . . . . Weapon 23 | 1 2 4 10 6 Energy Gun 2 | . . . . 2 Energy Cannon . | . . . . . Ballistic Gun 17 | 1 2 3 7 4 Ballistic Cannon . | . . . . . Launcher 2 | . . 1 1 . Special Weapon . | . . . . . Impact Weapon 2 | . . . 2 . Slashing Weapon . | . . . . . Piercing Weapon . | . . . . . Special Melee Weapon . | . . . . . Unidentified Prototypes 3 | . . . 3 . Parts Lost 15 | . . 3 3 9 Power 1 | . . . . 1 Propulsion 7 | . . 1 1 5 Utility 4 | . . 1 2 1 Weapon 3 | . . 1 . 2 Highest Loss Streak 7 | . . 2 2 7 To Critical Strikes . | . . . . . Average Slot Usage (%) 97 | . 100 98 97 95 Engine 11 | . 14 11 10 9 Treads 1 | . . . 3 1 Leg 27 | . 28 33 27 23 Wheel 1 | . . . . 8 Device 12 | . 14 13 14 8 Storage 11 | . 14 11 11 9 Processor 4 | . . . 3 13 Protection 3 | . . 6 4 4 Ballistic Gun 19 | . 28 19 19 14 Peak Build Rating 27 | 8 8 15 21 27 Average Rating 15 | 7 8 12 17 24 On Entrance 10 | 6 8 8 14 15 Naked Turns . | . . . . . Heaviest Build 32 | 14 15 23 32 31 Greatest Support 30 | 20 20 30 30 30 Greatest Overweight (x) 2 | . . . 1 2 Average Overweight (x) . | . . . . . Largest Inventory Capacity 10 | 8 8 8 10 10 Average Capacity 9 | 8 8 8 9 10 Most Carried 10 | 8 8 8 10 10 Average Carried 8 | 7 7 7 9 9 Final Capacity 10 | 8 8 8 10 10 Final Carried 10 | 8 8 8 10 8 Class Distribution -------------------- 72% | Scavenger-Mutant 22% | Mutant 4% | Scavenger-Skirmisher Dominant Class ---------------- Mutant | -10/Materials Scavenger-Mutant | -9/Materials Scavenger-Mutant | -9/Storage Scavenger-Mutant | -8/Materials Resources | -11 -10 -9 -9 -8 ----------- Run | Yrd Mat Mat Sto Mat Matter Collected 1706 | 316 154 244 596 396 Remotely 341 | 116 154 71 . . Salvage Created 2529 | 176 340 420 849 744 Parts 148 | 15 14 29 51 39 Haulers Intercepted 5 | . . . 4 1 Recyclers Shooed 5 | . 1 1 1 2 Parts Field Recycled . | . . . . . Retrieved Matter . | . . . . . Parts Self-Destructed . | . . . . . Prevented . | . . . . . Kills | -11 -10 -9 -9 -8 ------- Run | Yrd Mat Mat Sto Mat Combat Hostiles Destroyed 47 | . 6 10 17 14 Melee 1 | . . . 1 . Guns 42 | . 6 10 13 13 AOE 3 | . . . 3 . Classes Destroyed 13 | 3 1 4 4 1 Worker 6 | 2 . 1 3 . Builder 1 | . . . 1 . Tunneler 6 | 4 . . . 2 Hauler 5 | . . . 4 1 Recycler 2 | 1 1 . . . Operator 1 | . . . 1 . Drone 8 | . . . 8 . Watcher 2 | . . 1 1 . Swarmer 11 | . . 3 4 4 Grunt 23 | . 6 4 6 7 Brawler 1 | . . 1 . . Sentry 10 | . . 2 7 1 Specialist 2 | . . . . 2 Best Kill Streak 6 | 3 5 4 6 6 Combat Bots Only 4 | . 4 3 4 4 Max Kills in Single Turn 11 | 1 1 2 11 2 Gunslinging 1 | . . 1 1 . Exploded 2 | . . . 2 . Melee 1 | . . . 1 . Uniques/NPCs Destroyed . | . . . . . Combat | -11 -10 -9 -9 -8 -------- Run | Yrd Mat Mat Sto Mat Hostile Shots Fired 301 | . 30 53 94 124 Missed 89 | . 8 12 30 39 Damage Taken 2770 | . 279 493 894 1104 Core 435 | . 49 108 83 195 Absorbed by Shields . | . . . . . Core Remaining (%) 77 | 100 80 . 52 . Volleys Fired 190 | 29 19 32 60 50 Largest 2 | 2 2 2 2 2 Hottest 110 | 70 40 43 46 110 Shots Fired 365 | 58 38 61 112 96 Gun 354 | 58 38 58 104 96 Cannon . | . . . . . Launcher 11 | . . 3 8 . Special . | . . . . . Kinetic 306 | 38 38 58 104 68 Thermal 20 | 20 . . . . Explosive 11 | . . 3 8 . Electromagnetic 28 | . . . . 28 Robot Hit Streak 19 | 7 19 6 19 7 Robot Miss Streak 5 | 2 3 2 5 5 Penetration Max 1 | . . . . 1 Secondary Targets 7 | . 1 2 1 3 Max Gunslinging Chain 1 | . 1 1 1 1 Shots Hit Robots 241 | 39 29 44 70 59 Core Hits 116 | 13 16 18 44 25 Critical Kills 2 | . . . . 2 Critical Parts Destroyed 3 | . 1 . 2 . Critical Strikes 5 | . 1 . 2 2 Destroy 4 | . 1 . 1 2 Smash 1 | . . . 1 . Melee Attacks 11 | . . . 11 . Impact 11 | . . . 11 . Slashing . | . . . . . Piercing . | . . . . . Sneak Attacks 1 | . . . 1 . Combat Hostiles . | . . . . . Follow-up Attacks . | . . . . . Damage Inflicted 4429 | 381 369 429 2005 1245 Guns 3433 | 381 369 429 1009 1245 Cannons . | . . . . . Explosions 890 | . . . 890 . Melee 106 | . . . 106 . Ramming . | . . . . . Kinetic 2977 | 217 369 429 1009 953 Thermal 164 | 164 . . . . Explosive 890 | . . . 890 . Electromagnetic 292 | . . . . 292 Impact 106 | . . . 106 . Slashing . | . . . . . Piercing . | . . . . . Highest Corruption . | . . . . . Average Corruption . | . . . . . Corruption Purged . | . . . . . Corruption Blocked . | . . . . . Overload Shots . | . . . . . Overflow Damage 137 | . . . 137 . Projectiles . | . . . . . Explosions 83 | . . . 83 . Melee 54 | . . . 54 . Knockbacks . | . . . . . Impact . | . . . . . Kinetic . | . . . . . Secondary . | . . . . . Self-Inflicted Damage 110 | . . 9 101 . Shots 3 | . . 1 2 . Rammed . | . . . . . Targets Rammed . | . . . . . Kicked . | . . . . . Crushed . | . . . . . Highest Temperature 264 | 240 2 24 17 264 Average Temperature 62 | 98 2 9 5 61 Received Heat Transfer 993 | . 156 195 291 351 Effects 2 | . . . . 2 Energy Bleed 1 | . . . . 1 Interference 1 | . . . . 1 Siege Activations . | . . . . . Robots Corrupted 2 | . . . 1 1 Combat Hostiles 1 | . . . . 1 Parts Fried . | . . . . . Impact Corruptions 2 | . . . 2 . Robots Melted . | . . . . . Combat Hostiles . | . . . . . Parts Melted 3 | 3 . . . . Heat Transferred 481 | 481 . . . . Parts Sabotaged . | . . . . . Parts Stolen . | . . . . . Parts Stripped . | . . . . . Power Chain Reactions . | . . . . . Alert | -11 -10 -9 -9 -8 ------- Run | Yrd Mat Mat Sto Mat Peak Influence 497 | 35 229 318 497 436 Initial 176 | . 22 96 20 176 Average 228 | 14 138 194 293 290 Maximum Alert Level 2 | . 1 1 2 2 Low Security (%) 45 | 100 76 49 31 21 Level 1 37 | . 24 50 31 64 Level 2 17 | . . . 37 13 Level 3 . | . . . . . Level 4 . | . . . . . Level 5 . | . . . . . High Security . | . . . . . Max Security . | . . . . . Squads Dispatched 9 | . 2 2 3 2 Investigation 2 | . . 2 . . Extermination . | . . . . . Reinforcement 7 | . 2 . 3 2 Assault . | . . . . . Garrison . | . . . . . Intercept . | . . . . . Searches Triggered . | . . . . . Construction Impeded . | . . . . . Haulers Reinforced . | . . . . . Active Scanning Responses . | . . . . . Cargo Convoy Interrupts . | . . . . . Stealth | -11 -10 -9 -9 -8 --------- Run | Yrd Mat Mat Sto Mat Distress Signals 6 | . 1 1 3 1 Communications Jammed . | . . . . . Distress Signals . | . . . . . Times Spotted 64 | . 8 12 26 18 Peak Tracking Total 5 | . 4 4 5 5 Tactical Retreats 3 | . . . 2 1 Traps | -11 -10 -9 -9 -8 ------- Run | Yrd Mat Mat Sto Mat Traps Triggered 1 | . . 1 . . Indirectly . | . . . . . Trap Hack Attempts . | . . . . . Triggered . | . . . . . Disarmed . | . . . . . Reprogrammed . | . . . . . Reused . | . . . . . Traps Extracted . | . . . . . Installed . | . . . . . Triggered . | . . . . . Machines | -11 -10 -9 -9 -8 ---------- Run | Yrd Mat Mat Sto Mat Machines Disabled 6 | . . 1 4 1 Max in Single Turn 2 | . . 1 2 1 Machines Repaired . | . . . . . Machines Dismantled . | . . . . . Machines Sabotaged . | . . . . . Overloaded Fab Kills . | . . . . . Hacking | -11 -10 -9 -9 -8 --------- Run | Yrd Mat Mat Sto Mat Machines Accessed 9 | . 1 2 4 2 Terminals 9 | . 1 2 4 2 Fabricators . | . . . . . Repair Stations . | . . . . . Recycling Units . | . . . . . Scanalyzers . | . . . . . Garrison Access . | . . . . . Total Hacks 19 | . 3 3 4 9 Successful 9 | . 2 1 3 3 Failed 10 | . 1 2 1 6 Catastrophic 2 | . . 1 . 1 Database Lockouts . | . . . . . Manual . | . . . . . Terminals 19 | . 3 3 4 9 Fabricators . | . . . . . Repair Stations . | . . . . . Recycling Units . | . . . . . Scanalyzers . | . . . . . Garrison Access . | . . . . . Terminal Hacks 9 | . 2 1 3 3 Part Schematic 1 | . . . 1 . Open Door 2 | . . . 2 . Branch Access Points 2 | . 1 . . 1 Terminal Index 1 | . . . . 1 Unreport Threat 2 | . . 1 . 1 Locate Traps 1 | . 1 . . . Fabricator Hacks . | . . . . . Repair Station Hacks . | . . . . . Recycling Unit Hacks . | . . . . . Scanalyzer . | . . . . . Garrison Access Hacks . | . . . . . Unauthorized Hacks . | . . . . . Terminals . | . . . . . Fabricators . | . . . . . Repair Stations . | . . . . . Recycling Units . | . . . . . Scanalyzers . | . . . . . Garrison Access . | . . . . . Data Cores Recovered . | . . . . . Used . | . . . . . Hacking Detections 7 | . 1 2 2 2 Full Trace Events 1 | . . 1 . . Feedback Events . | . . . . . Feedback Blocked . | . . . . . Robot Schematics Acquired . | . . . . . Robots Built . | . . . . . Authchips . | . . . . . Time . | . . . . . Total Robot Build Rating . | . . . . . Part Schematics Acquired 1 | . . . 1 . Parts Built . | . . . . . Authchips . | . . . . . Time . | . . . . . Total Part Build Rating . | . . . . . Parts Repaired . | . . . . . Time . | . . . . . Parts Recycled . | . . . . . Recycled Matter . | . . . . . Retrieved Matter . | . . . . . Retrieved Components . | . . . . . Parts Scanalyzed . | . . . . . Part Schematics Acquired . | . . . . . Parts Damaged . | . . . . . Bothacking | -11 -10 -9 -9 -8 ------------ Run | Yrd Mat Mat Sto Mat Used RIF Installer . | . . . . . Robots Hacked . | . . . . . Non-combat . | . . . . . Combat . | . . . . . Robot Hacks Applied . | . . . . . Relay Couplers Released . | . . . . . Fabnet Peak Effective % . | . . . . . Robots Rewired . | . . . . . Allies Hacked . | . . . . . Hacks Repelled . | . . . . . Allies | -11 -10 -9 -9 -8 -------- Run | Yrd Mat Mat Sto Mat Total Allies . | . . . . . Largest Group . | . . . . . Highest-Rated Group . | . . . . . Highest-Rated Ally . | . . . . . Total Orders . | . . . . . Ally Attacks . | . . . . . Total Damage . | . . . . . Kills . | . . . . . Allies Corrupted . | . . . . . Allies Melted . | . . . . . Intel | -11 -10 -9 -9 -8 ------- Run | Yrd Mat Mat Sto Mat Robot Analysis Total . | . . . . . Derelict Logs Recovered . | . . . . . Drone Launches 12 | . . . 12 . Drone Recoveries 2 | . . . 2 . Exploration | -11 -10 -9 -9 -8 ------------- Run | Yrd Mat Mat Sto Mat Turns Passed 2242 | 171 350 421 881 419 Spaces Moved 1083 | 51 212 262 381 177 Core . | . . . . . Treads 10 | . . . 9 1 Legs 1028 | 51 212 262 372 131 Wheels 45 | . . . . 45 Hover . | . . . . . Flight . | . . . . . Fastest Speed 120 | 120 120 120 120 120 Average Speed 137 | 120 120 120 163 134 Slowest Speed 240 | 120 120 120 240 240 Overloaded Moves . | . . . . . Propulsion Burnouts . | . . . . . Robots Hopped . | . . . . . Cave-ins Triggered . | . . . . . Exploration Rate (%) 30 | 7 34 30 65 16 Regions Visited 4 Branch Regions 1 Pre-discovered Areas 1 | . . . 1 . Known Exits Taken . | . . . . . Unknown Exits Taken 4 | 1 1 1 1 . Scrap Searched . | . . . . . Spaces Dug 43 | . . . 43 . Terrain Destroyed 155 | . . 33 118 4 Melee 3 | . . . 3 . Projectile 2 | . . . . 2 AOE 148 | . . 33 115 . Terrain Rammed . | . . . . . Walls Destroyed . | . . . . . Machines Disabled . | . . . . . Actions | -11 -10 -9 -9 -8 --------- Run | Yrd Mat Mat Sto Mat Total 1470 | 110 273 311 511 265 Wait 71 | 25 27 . 15 4 Move 1079 | 50 211 261 380 177 Hop . | . . . . . Pick Up 19 | 3 4 3 4 5 Fast Attach 15 | 1 . 2 6 6 Attach 8 | . . 3 1 4 Detach 2 | . . . 1 1 Swap 32 | 1 4 6 14 7 Drop 38 | 1 8 4 14 11 Fire 190 | 29 19 32 60 50 Melee 11 | . . . 11 . Ram . | . . . . . Kick . | . . . . . Crush . | . . . . . Escape Stasis . | . . . . . Rewire . | . . . . . Trap . | . . . . . Miscellaneous 5 | . . . 5 . Route ------- -11/Scrapyard -10/Materials (discovered 3 exits: *Mat / *Min x2) -9/Materials (discovered 2 exits: *Mat / *Sto) -9/Storage -8/Materials History --------- Turn | Location | Event 5 | -11/Scrapyard | Discovered new exit (range 3) 172 | -11/Scrapyard | Entered Materials 308 | -10/Materials | Build established: Mutant 313 | -10/Materials | Discovered new exit (range 15) 342 | -10/Materials | Discovered new exit (range 14) 347 | -10/Materials | Identified exit to Mines 517 | -10/Materials | Discovered new exit (range 5) 522 | -10/Materials | Entered another Materials area 522 | -9/Materials | Evolved 2 slots: Propulsion x1, Utility x1 754 | -9/Materials | Discovered new exit (range 15) 810 | -9/Materials | Build established: Scavenger-Mutant 912 | -9/Materials | Discovered new exit (range 8) 943 | -9/Materials | Entered Storage 1257 | -9/Storage | Lost 8 allies 1314 | -9/Storage | Learned location of Armory (-4) 1812 | -9/Storage | Discovered new exit (range 5) 1824 | -9/Storage | Entered Materials 1824 | -8/Materials | Evolved 2 slots: Propulsion x1, Utility x1 2243 | -8/Materials | Self-destructed Last Messages --------------- 02169_ Overheating: Energy bleed (-36). 02170_ Overheating: System interference. 02170_ Imp. Terrain Scanner temporarily disabled. 02176_ Acquired 49 matter. 02178_ Dropped Aluminum Leg. 02179_ Acquired 59 matter. 02188_ R-06 Scavenger collects Corrupted Lgt. Nuclear Core. 02192_ R-06 Scavenger collects Lgt. Nuclear Core. 02195_ R-06 Scavenger collects Corrupted Particle Gun. 02206_ Arm. Wheel destroyed. 02209_ Aluminum Leg destroyed. 02212_ X-57 Shotgunner system terminally corrupted. 02218_ K-01 Serf collects debris. 02218_ Lightning Gun destroyed. 02231_ Aluminum Leg destroyed. 02234_ Lightning Gun destroyed. 02237_ Aluminum Leg destroyed. 02240_ Hvy. Ion Engine destroyed. 02240_ Slug penetrates X-57 Shotgunner. 02240_ X-57 Shotgunner destroyed. Map ----- +----------------------------------------------------+ | ???????#??# """ #########################??????? | | ????????### """ [ + ??????? | | ?????#?#??# ####### #??##?? ???? | | ??????################### ##??#?????? | | ??#???# """ ###?# + ##??? ?????? | | ?????## """ #???# #######+##+## #?##???????? | | ??????# """ #???# """ #?? # ##????#?#??? | | ##??#?# ##### """ #?# """ # #??#???????? | | #??#?# [ # + """ ### "Y" ! !# #?###????#?? | | #????? ##### #?# # #??##?#??#?? | | #??#??###+###?######+###############+####? ?????? | | !#??#?## #?####! # ? # ##### #???#? | | %####### [######% = # # """ "#???? ?????? | | + [[%%!=[!% = # ? # """ T###???#?#??? | | [####### [######%[ # """?# """ "#?#????#??#? | | =##????# ######=[ # """?# #??#??#?#?#? | | ##?????### ####?#?## ## ?"?"?#! ]###?#? ??? | | ?? ??????# #???????# ##"#########/####?## ? #?# | | ???????#?# #?? "???# ##### #?# | | ? ?????#?# #???????# ! ### | | ?????????# #?????" # =! = ########?##? | | ?????????# # ??????######+####### ! ###???#?#?## | | ????????? /???? ????# %* #?##[ ###?####??? | | ?????????#+#?????#??### ! ""#??#!![ [!#?#?#??##?# | | ??????? ?? ???????????# T"##?#!! [!!##??#????## | | ????????????#?#???????# @ ""#??########?????##??# | | ????????????##???????## ##?????#?#?#?#?#?#?## | | ????????????????????### ##??#####?#??##?#?#?# | | ??????????????????????########?#??#?#???#???#?#??? | | ????????????????????#??#?#???#? ??? ? ??a?? ??? | | ??????????????????????#??#?#????? ? ? ???? ??? | | ??????????????????????#?##?#??#? ? ???????? ? | | ????????????????????????#?##?#??? ?##???##?? ?#??? | | ????????????????????????????#?? ???##??#???? ?##?? | | ??????????????????????? ? ??? ???####??# ????? | | ???????????????????????? ?"" ? ??#????#??#??#???? | | ??????????????????????????????? ????#??#?#???????? | | ????????????????????????????"?#???????#?##???????? | | ????????????????????????????"?? ??###??#?#??????? | | ??????????????????????????????????????"??????????? | | ?????????????????????????????????????????????????? | | ?????????????????????????????????????????????????? | | ?????????????????????????????????????????????????? | | ?????????????????????????????????????????????????? | | ?????????????????????????????????????????????????? | | ?????????????????????????????????????????????????? | | ?????????????????????????????????????????????????? | | ?????????????????????????????????????????????????? | | ?????????????????????????????????????????????????? | | ?????????????????????????????????????????????????? | +----------------------------------------------------+ Best States ------------- Heat Dissipation 45 Energy Generation 14 Energy Capacity 280 Matter Stores 300 Matter Capacity 300 Sight Range 16 Terrain Scan Range 16 Terrain Scan Density 210 Armor Coverage 150 Melee Speed Boost 20 Evasion (%) 55 Recoil Reduction 1 Item Schematics ----------------- Imp. Medium Armor Plating | -9/Storage | Hacked Robot Schematics ------------------ None Fabricated ------------ Nothing Alien Tech Used ----------------- None Achievements -------------- Collateral Damage Challenges ------------ None Game ------ Seed CouplerConstructAutobeam Manual? 0 Play Time 00:23:41 Cumulative 163.8 hours Start 2024.09.08 @ 12:51:22 End 2024.09.08 @ 13:14:50 Sessions 1 Manual Loads 0 Difficulty Rogue Special Mode None Game No. 299 Rogue 295 Adventurer 0 Explorer 4 Win Type - Total 0 Types 0/0/0/0/0/0/0/0/0 Lore% 20 Gallery% 46 Achievement% 35 Wizard Run 0 Options --------- Layout 1 ASCII 0 Keyboard 1 Movement Arrows Keybinds 0 Fullscreen 1 Font 32/SmallcapsGlow Map View 130x35 Zoom Use 0% Tactical HUD 1 Map Filters NONE Filters NONE Steam 0 RUN: 3f984b95-3132-4d46-939c-f6cb14745cca